[Event "16th Deltalift Open 2019"]
[Site "Halmstad"]
[Date "2019.05.30"]
[Round "1.2"]
[White "Olsson, Thomas"]
[Black "Hector, Jonny"]
[Result "0-1"]
[ECO "C74"]
[WhiteElo "1951"]
[BlackElo "2488"]
[Annotator "ChessBase"]
[PlyCount "66"]
[EventDate "2019.05.30"]
[EventType "swiss"]
[EventCountry "SWE"]
[SourceTitle "playchess.com"]
[Source "ChessBase"]
[SourceQuality "1"]
[TimeControl "1800+12"]

1. e4 {[%emt 0:00:00]} e5 {[%emt 0:00:00]} 2. Nf3 {[%emt 0:00:00]} Nc6 {[%emt 0:00:00]} 3. Bb5 {[%emt 0:00:50]} a6 {[%emt 0:00:00]} 4. Ba4 {[%emt 0:00:04]} d6 {[%emt 0:00:09]} 5. c3 {[%emt 0:03:12]} f5 {[%emt 0:00:05]} 6. exf5 {[%emt 0:01:26]} Bxf5 {[%emt 0:00:05]} 7. O-O {[%emt 0:00:35]} Bd3 {[%emt 0:00:04]} 8. Re1 {[%emt 0:00:07]} Be7 {[%emt 0:00:25]} 9. Bc2 {[%emt 0:02:25]} Bxc2 {[%emt 0:00:05]} 10. Qxc2 {[%emt 0:00:03]} Nf6 {[%emt 0:00:23]} 11. d4 {[%emt 0:00:31]} O-O {[%emt 0:00:34]} 12. dxe5 {[%emt 0:00:19]} Nxe5 {[%emt 0:03:01]} 13. Nxe5 {[%emt 0:01:16]} dxe5 {[%emt 0:00:03]} 14. Nd2 {[%emt 0:03:49]} Bc5 {[%emt 0:01:18]} 15. Rf1 {[%emt 0:06:12]} e4 {[%emt 0:02:15]} 16. Nc4 {[%emt 0:01:41]} Qd5 {[%emt 0:02:31]} 17. Ne3 {[%emt 0:02:20]} Qe5 {[%emt 0:00:24]} 18. Nc4 {[%emt 0:00:26]} Qh5 {[%emt 0:02:52]} 19. Be3 {[%emt 0:01:01]} Ng4 {[%emt 0:00:29]} 20. h3 {[%emt 0:00:07]} Nxe3 {[%emt 0:00:07]} 21. Nxe3 {[%emt 0:00:03]} Rae8 {[%emt 0:01:00]} 22. Rae1 {[%emt 0:00:06]} Kh8 {[%emt 0:00:17]} 23. Qe2 {[%emt 0:00:14]} Qe5 {[%emt 0:00:52]} 24. Nc4 {[%emt 0:00:33]} Qe6 {[%emt 0:00:13]} 25. b4 {[%emt 0:00:42]} Ba7 {[%emt 0:00:32]} 26. a3 {[%emt 0:00:06]} c5 {[%emt 0:01:35]} 27. Nd2 {[%emt 0:00:56]} cxb4 {[%emt 0:00:45]} 28. cxb4 {[%emt 0:00:12]} e3 {[%emt 0:01:11]} 29. fxe3 {[%emt 0:00:49]} b5 {[%emt 0:00:39]} 30. Rxf8+ {[%emt 0:00:27]} Rxf8 {[%emt 0:00:02]} 31. Kh1 {[%emt 0:00:10]} Qe5 {[%emt 0:00:25]} 32. Nf3 {[%emt 0:00:40]} Qg3 {[%emt 0:01:34]} 33. e4 {[%emt 0:00:17]} Rxf3 {[%emt 0:00:17]} 0-1

[Event "16th Deltalift Open 2019"]
[Site "Halmstad"]
[Date "2019.05.30"]
[Round "1.3"]
[White "Cramling, Pia"]
[Black "Petersson, Kjell"]
[Result "1-0"]
[ECO "A04"]
[WhiteElo "2454"]
[BlackElo "1949"]
[Annotator "ChessBase"]
[PlyCount "73"]
[EventDate "2019.05.30"]
[EventType "swiss"]
[EventCountry "SWE"]
[SourceTitle "playchess.com"]
[Source "ChessBase"]
[SourceQuality "1"]
[TimeControl "1800+12"]

1. Nf3 {[%emt 0:00:00]} f5 {[%emt 0:00:00]} 2. g3 {[%emt 0:00:00]} Nf6 {[%emt 0:00:00]} 3. Bg2 {[%emt 0:00:00]} e6 {[%emt 0:00:00]} 4. O-O {[%emt 0:00:12]} d5 {[%emt 0:00:00]} 5. d3 {[%emt 0:00:28]} Be7 {[%emt 0:00:34]} 6. c4 {[%emt 0:00:07]} O-O {[%emt 0:00:34]} 7. Nc3 {[%emt 0:01:38]} d4 {[%emt 0:05:55]} 8. Nb5 {[%emt 0:00:05]} Nc6 {[%emt 0:00:27]} 9. e3 {[%emt 0:00:41]} dxe3 {[%emt 0:02:48]} 10. fxe3 {[%emt 0:00:14]} a6 {[%emt 0:03:10]} 11. Nbd4 {[%emt 0:02:36]} Nxd4 {[%emt 0:01:31]} 12. exd4 {[%emt 0:00:05]} c5 {[%emt 0:00:27]} 13. dxc5 {[%emt 0:00:12]} Bxc5+ {[%emt 0:00:01]} 14. d4 {[%emt 0:00:05]} Ba7 {[%emt 0:01:25]} 15. c5 {[%emt 0:02:29]} Qe7 {[%emt 0:01:32]} 16. Bf4 {[%emt 0:01:00]} Bd7 {[%emt 0:02:52]} 17. Bd6 {[%emt 0:00:30]} Qe8 {[%emt 0:01:36]} 18. Bxf8 {[%emt 0:01:18]} Qxf8 {[%emt 0:00:01]} 19. Ne5 {[%emt 0:00:12]} Bb5 {[%emt 0:01:06]} 20. Qb3 {[%emt 0:00:12]} Re8 {[%emt 0:04:40]} 21. Rxf5 {[%emt 0:01:56]} Ba4 {[%emt 0:01:34]} 22. Qxa4 {[%emt 0:00:05]} exf5 {[%emt 0:00:22]} 23. Qb3+ {[%emt 0:02:27]} Kh8 {[%emt 0:00:00]} 24. Nf7+ Kg8 25. Nd6+ {[%emt 0:00:14]} Kh8 {[%emt 0:00:01]} 26. Nxe8 {[%emt 0:00:33]} Qxe8 {[%emt 0:00:01]} 27. Qc3 {[%emt 0:00:10]} Qf7 {[%emt 0:01:19]} 28. Qb3 {[%emt 0:00:59]} Qd7 {[%emt 0:00:35]} 29. Rd1 {[%emt 0:00:05]} h6 {[%emt 0:00:35]} 30. Qxb7 {[%emt 0:00:37]} Qa4 {[%emt 0:01:04]} 31. b3 {[%emt 0:02:59]} Qe8 {[%emt 0:00:31]} 32. Qxa7 {[%emt 0:00:12]} Qe3+ {[%emt 0:00:01]} 33. Kh1 {[%emt 0:00:03]} Ng4 {[%emt 0:00:58]} 34. Rf1 {[%emt 0:00:10]} Nf2+ {[%emt 0:00:45]} 35. Rxf2 {[%emt 0:00:03]} Qxf2 {[%emt 0:00:01]} 36. Qa8+ {[%emt 0:00:06]} Kh7 {[%emt 0:00:01]} 37. Qf3 {[%emt 0:00:08]} 1-0

[Event "16th Deltalift Open 2019"]
[Site "Halmstad"]
[Date "2019.05.30"]
[Round "1.4"]
[White "Nilsson, Weine"]
[Black "Sjodahl, Pontus"]
[Result "0-1"]
[ECO "C00"]
[WhiteElo "1949"]
[BlackElo "2435"]
[Annotator "ChessBase"]
[PlyCount "48"]
[EventDate "2019.05.30"]
[EventType "swiss"]
[EventCountry "SWE"]
[SourceTitle "playchess.com"]
[Source "ChessBase"]
[SourceQuality "1"]
[TimeControl "1800+12"]

1. e4 {[%emt 0:00:00]} e6 {[%emt 0:00:00]} 2. d3 {[%emt 0:00:10]} d5 {[%emt 0:00:00]} 3. Nd2 {[%emt 0:00:07]} Nf6 {[%emt 0:00:31]} 4. g3 {[%emt 0:00:40]} Nc6 {[%emt 0:01:28]} 5. Bg2 {[%emt 0:00:14]} dxe4 {[%emt 0:00:17]} 6. Nxe4 {[%emt 0:00:35]} Nxe4 {[%emt 0:00:48]} 7. Bxe4 {[%emt 0:00:17]} e5 {[%emt 0:02:33]} 8. Ne2 {[%emt 0:01:03]} Bd6 {[%emt 0:02:40]} 9. Be3 {[%emt 0:01:23]} Bh3 {[%emt 0:00:45]} 10. Qd2 {[%emt 0:01:39]} f5 {[%emt 0:01:47]} 11. Bf3 {[%emt 0:01:16]} Qe7 {[%emt 0:00:40]} 12. Bxc6+ {[%emt 0:05:31]} bxc6 {[%emt 0:00:04]} 13. O-O-O {[%emt 0:01:24]} O-O {[%emt 0:00:48]} 14. f4 {[%emt 0:00:13]} e4 {[%emt 0:01:51]} 15. Qc3 {[%emt 0:01:07]} Bg2 {[%emt 0:03:38]} 16. Rhe1 {[%emt 0:00:28]} Kh8 {[%emt 0:00:58]} 17. a3 {[%emt 0:00:02]} exd3 {[%emt 0:01:22]} 18. Rxd3 {[%emt 0:01:39]} Be4 {[%emt 0:00:41]} 19. Rd2 {[%emt 0:00:05]} a5 {[%emt 0:00:11]} 20. Kb1 {[%emt 0:02:53]} Rfb8 {[%emt 0:00:24]} 21. Nd4 {[%emt 0:00:17]} Bxa3 {[%emt 0:01:29]} 22. Nxc6 {[%emt 0:01:49]} Bxb2 {[%emt 0:01:14]} 23. Rd8+ {[%emt 0:05:18]} Qxd8 {[%emt 0:00:45]} 24. Qc4 {[%emt 0:01:04]} Bxc6 {[%emt 0:00:23]} 0-1

[Event "16th Deltalift Open 2019"]
[Site "Halmstad"]
[Date "2019.05.30"]
[Round "1.5"]
[White "Brynell, Stellan"]
[Black "Stenman, Christoffer"]
[Result "1-0"]
[ECO "E15"]
[WhiteElo "2406"]
[BlackElo "1947"]
[Annotator "ChessBase"]
[PlyCount "45"]
[EventDate "2019.05.30"]
[EventType "swiss"]
[EventCountry "SWE"]
[SourceTitle "playchess.com"]
[Source "ChessBase"]
[SourceQuality "1"]
[TimeControl "1800+12"]

1. d4 {[%emt 0:00:00]} Nf6 {[%emt 0:00:00]} 2. Nf3 {[%emt 0:00:00]} e6 {[%emt 0:00:12]} 3. c4 {[%emt 0:00:02]} b6 {[%emt 0:00:26]} 4. g3 {[%emt 0:00:06]} c6 {[%emt 0:02:23]} 5. Bg2 {[%emt 0:00:08]} Be7 {[%emt 0:01:19]} 6. O-O {[%emt 0:00:11]} O-O {[%emt 0:00:59]} 7. Qc2 {[%emt 0:00:24]} d5 {[%emt 0:01:24]} 8. Rd1 {[%emt 0:00:31]} Nbd7 {[%emt 0:03:14]} 9. b3 {[%emt 0:00:13]} Ba6 {[%emt 0:03:04]} 10. Nbd2 {[%emt 0:00:08]} Rc8 {[%emt 0:00:52]} 11. e4 {[%emt 0:02:08]} c5 {[%emt 0:09:40]} 12. exd5 {[%emt 0:05:29]} exd5 {[%emt 0:00:21]} 13. Bb2 {[%emt 0:00:14]} dxc4 {[%emt 0:03:10]} 14. Nxc4 {[%emt 0:03:22]} cxd4 {[%emt 0:02:17]} 15. Nxd4 {[%emt 0:06:27]} b5 {[%emt 0:01:03]} 16. Nc6 {[%emt 0:00:02]} Rxc6 {[%emt 0:00:09]} 17. Bxc6 {[%emt 0:00:02]} bxc4 {[%emt 0:00:11]} 18. Bxf6 {[%emt 0:02:41]} Bxf6 {[%emt 0:00:03]} 19. Rac1 {[%emt 0:00:03]} cxb3 {[%emt 0:01:51]} 20. Qxb3 {[%emt 0:00:37]} Bc8 {[%emt 0:00:14]} 21. Qb5 {[%emt 0:02:58]} Bg5 {[%emt 0:01:02]} 22. f4 {[%emt 0:01:37]} a6 {[%emt 0:00:00]} 23. Qxg5 {[%emt 0:00:23]} 1-0

[Event "16th Deltalift Open 2019"]
[Site "Halmstad"]
[Date "2019.05.30"]
[Round "1.6"]
[White "Karlsson, Roger"]
[Black "Jepson, Christian"]
[Result "1-0"]
[ECO "B07"]
[WhiteElo "1936"]
[BlackElo "2395"]
[Annotator "ChessBase"]
[PlyCount "52"]
[EventDate "2019.05.30"]
[EventType "swiss"]
[EventCountry "SWE"]
[SourceTitle "playchess.com"]
[Source "ChessBase"]
[SourceQuality "1"]
[TimeControl "1800+12"]

1. e4 {[%emt 0:00:00]} d6 {[%emt 0:00:00]} 2. d4 {[%emt 0:00:00]} Nf6 {[%emt 0:00:00]} 3. Nc3 {[%emt 0:00:38]} g6 {[%emt 0:00:00]} 4. g3 {[%emt 0:01:20]} Bg7 {[%emt 0:00:45]} 5. Bg2 {[%emt 0:00:03]} O-O {[%emt 0:00:06]} 6. f4 {[%emt 0:00:21]} e5 {[%emt 0:02:48]} 7. dxe5 {[%emt 0:01:09]} dxe5 {[%emt 0:00:04]} 8. Qxd8 {[%emt 0:01:16]} Rxd8 {[%emt 0:00:03]} 9. fxe5 {[%emt 0:01:21]} Nfd7 {[%emt 0:02:07]} 10. Bg5 {[%emt 0:01:34]} Re8 {[%emt 0:00:08]} 11. Nd5 {[%emt 0:01:21]} Na6 {[%emt 0:11:43]} 12. Ne7+ {[%emt 0:09:53]} Kf8 {[%emt 0:00:20]} 13. Nxc8 {[%emt 0:00:08]} Raxc8 {[%emt 0:00:23]} 14. Bh3 {[%emt 0:00:02]} Nac5 {[%emt 0:01:08]} 15. O-O-O {[%emt 0:03:16]} Nxe5 {[%emt 0:04:05]} 16. Bxc8 {[%emt 0:01:34]} Rxc8 {[%emt 0:00:02]} 17. Rd8+ {[%emt 0:01:55]} Rxd8 {[%emt 0:00:05]} 18. Bxd8 {[%emt 0:00:01]} Ne6 {[%emt 0:00:06]} 19. Bxc7 {[%emt 0:02:56]} Nxc7 {[%emt 0:00:02]} 20. Ne2 {[%emt 0:00:01]} Nc4 {[%emt 0:00:34]} 21. b3 {[%emt 0:01:51]} Nd6 {[%emt 0:00:18]} 22. Rd1 {[%emt 0:00:50]} Ke7 {[%emt 0:00:17]} 23. Nf4 {[%emt 0:00:18]} Nxe4 {[%emt 0:00:27]} 24. Re1 {[%emt 0:01:07]} f5 {[%emt 0:00:03]} 25. g4 {[%emt 0:00:02]} Bh6 {[%emt 0:00:10]} 26. Rf1 {[%emt 0:00:37]} Ne6 {[%emt 0:00:34]} 1-0

[Event "16th Deltalift Open 2019"]
[Site "Halmstad"]
[Date "2019.05.30"]
[Round "1.7"]
[White "Pantzar, Milton"]
[Black "Mitra, Akash"]
[Result "1-0"]
[ECO "A04"]
[WhiteElo "2390"]
[BlackElo "1933"]
[Annotator "ChessBase"]
[PlyCount "105"]
[EventDate "2019.05.30"]
[EventType "swiss"]
[EventCountry "SWE"]
[SourceTitle "playchess.com"]
[Source "ChessBase"]
[SourceQuality "1"]
[TimeControl "1800+12"]

1. Nf3 {[%emt 0:00:00]} f5 {[%emt 0:00:00]} 2. d4 {[%emt 0:00:29]} Nf6 {[%emt 0:00:02]} 3. c4 {[%emt 0:00:25]} e6 {[%emt 0:00:02]} 4. g3 {[%emt 0:00:48]} Bb4+ {[%emt 0:00:12]} 5. Bd2 {[%emt 0:00:46]} Qe7 {[%emt 0:00:14]} 6. Bg2 {[%emt 0:00:36]} O-O {[%emt 0:00:29]} 7. O-O {[%emt 0:00:08]} Bxd2 {[%emt 0:00:07]} 8. Qxd2 {[%emt 0:00:54]} Ne4 {[%emt 0:00:19]} 9. Qc2 {[%emt 0:00:31]} d6 {[%emt 0:00:22]} 10. Nc3 {[%emt 0:01:06]} Nxc3 {[%emt 0:00:28]} 11. Qxc3 {[%emt 0:00:06]} Nd7 {[%emt 0:00:39]} 12. Rac1 {[%emt 0:01:20]} e5 {[%emt 0:02:57]} 13. c5 {[%emt 0:01:20]} e4 {[%emt 0:00:59]} 14. cxd6 {[%emt 0:00:19]} cxd6 {[%emt 0:01:20]} 15. Nd2 {[%emt 0:06:09]} Nf6 {[%emt 0:03:01]} 16. Nc4 {[%emt 0:02:47]} Be6 {[%emt 0:03:02]} 17. Ne3 {[%emt 0:00:22]} Rac8 {[%emt 0:02:41]} 18. Qa3 {[%emt 0:00:22]} a6 {[%emt 0:00:37]} 19. Qa5 {[%emt 0:04:27]} d5 {[%emt 0:02:53]} 20. Qa3 {[%emt 0:03:08]} Qxa3 {[%emt 0:02:20]} 21. bxa3 {[%emt 0:00:01]} g5 {[%emt 0:02:11]} 22. Bh3 {[%emt 0:00:50]} g4 {[%emt 0:01:03]} 23. Bg2 {[%emt 0:00:01]} Rxc1 {[%emt 0:03:19]} 24. Rxc1 {[%emt 0:00:02]} Rc8 {[%emt 0:00:01]} 25. Rxc8+ {[%emt 0:00:22]} Bxc8 {[%emt 0:00:00]} 26. Kf1 {[%emt 0:00:39]} Kf7 {[%emt 0:00:37]} 27. Ke1 {[%emt 0:00:06]} Ke6 {[%emt 0:00:05]} 28. Bf1 {[%emt 0:00:10]} Ne8 {[%emt 0:00:37]} 29. Ng2 {[%emt 0:00:09]} Nc7 {[%emt 0:01:08]} 30. e3 {[%emt 0:00:12]} Bd7 {[%emt 0:00:12]} 31. Nf4+ {[%emt 0:00:13]} Kd6 {[%emt 0:00:23]} 32. Nh5 {[%emt 0:02:15]} Nb5 {[%emt 0:00:51]} 33. Bxb5 {[%emt 0:00:06]} Bxb5 {[%emt 0:00:01]} 34. Kd2 {[%emt 0:00:09]} Bc4 {[%emt 0:00:03]} 35. Ng7 {[%emt 0:00:12]} Bxa2 {[%emt 0:00:29]} 36. Nxf5+ {[%emt 0:00:04]} Ke6 {[%emt 0:00:21]} 37. Nh6 {[%emt 0:00:19]} a5 {[%emt 0:00:38]} 38. Nxg4 {[%emt 0:00:08]} Bc4 {[%emt 0:00:17]} 39. Ne5 {[%emt 0:00:14]} Bf1 {[%emt 0:00:18]} 40. Kc3 {[%emt 0:00:57]} h5 {[%emt 0:00:50]} 41. Ng6 {[%emt 0:00:26]} Ba6 {[%emt 0:01:35]} 42. Nf4+ {[%emt 0:00:03]} Kd6 {[%emt 0:00:01]} 43. Nxh5 {[%emt 0:00:03]} b5 {[%emt 0:00:01]} 44. Nf4 {[%emt 0:00:04]} Bb7 {[%emt 0:00:06]} 45. h4 {[%emt 0:00:03]} Ke7 {[%emt 0:00:01]} 46. g4 {[%emt 0:00:26]} Kf6 {[%emt 0:00:06]} 47. Kb3 {[%emt 0:00:28]} Bc6 {[%emt 0:00:08]} 48. g5+ {[%emt 0:00:40]} Ke7 {[%emt 0:00:27]} 49. h5 {[%emt 0:00:05]} Kf7 {[%emt 0:00:50]} 50. h6 {[%emt 0:00:03]} Bb7 {[%emt 0:00:16]} 51. g6+ {[%emt 0:00:06]} Kf6 {[%emt 0:00:14]} 52. g7 {[%emt 0:00:06]} Kf7 {[%emt 0:00:08]} 53. Ng6 {[%emt 0:00:06]} 1-0

[Event "16th Deltalift Open 2019"]
[Site "Halmstad"]
[Date "2019.05.30"]
[Round "1.8"]
[White "Voll, Oddvar U"]
[Black "Lindberg, Bengt"]
[Result "0-1"]
[ECO "B22"]
[WhiteElo "1932"]
[BlackElo "2382"]
[Annotator "ChessBase"]
[PlyCount "64"]
[EventDate "2019.05.30"]
[EventType "swiss"]
[EventCountry "SWE"]
[SourceTitle "playchess.com"]
[Source "ChessBase"]
[SourceQuality "1"]
[TimeControl "1800+12"]

1. e4 {[%emt 0:00:00]} c5 {[%emt 0:00:00]} 2. c3 {[%emt 0:00:00]} Nf6 {[%emt 0:00:00]} 3. e5 {[%emt 0:00:03]} Nd5 {[%emt 0:00:00]} 4. d4 {[%emt 0:00:25]} cxd4 {[%emt 0:00:00]} 5. cxd4 {[%emt 0:00:03]} d6 {[%emt 0:00:06]} 6. Nf3 {[%emt 0:00:55]} e6 {[%emt 0:00:06]} 7. Nc3 {[%emt 0:01:05]} Nxc3 {[%emt 0:00:07]} 8. bxc3 {[%emt 0:00:04]} Nd7 {[%emt 0:00:41]} 9. exd6 {[%emt 0:01:20]} Bxd6 {[%emt 0:00:04]} 10. Bd3 {[%emt 0:00:25]} Qc7 {[%emt 0:00:17]} 11. Bb2 {[%emt 0:02:22]} b6 {[%emt 0:00:30]} 12. O-O {[%emt 0:00:07]} Bb7 {[%emt 0:00:03]} 13. h3 {[%emt 0:03:56]} O-O {[%emt 0:00:21]} 14. Re1 {[%emt 0:01:30]} h6 {[%emt 0:01:25]} 15. c4 {[%emt 0:00:33]} Rfe8 {[%emt 0:00:20]} 16. Rc1 {[%emt 0:01:30]} Rad8 {[%emt 0:01:00]} 17. Bb1 {[%emt 0:00:15]} e5 {[%emt 0:09:16]} 18. d5 {[%emt 0:08:24]} Nc5 {[%emt 0:00:47]} 19. Nd2 {[%emt 0:00:39]} Bf8 {[%emt 0:04:11]} 20. Nb3 {[%emt 0:03:45]} Nd7 {[%emt 0:03:10]} 21. Qd3 {[%emt 0:01:07]} g6 {[%emt 0:01:01]} 22. h4 {[%emt 0:00:55]} h5 {[%emt 0:02:49]} 23. f4 {[%emt 0:01:57]} Bg7 {[%emt 0:00:40]} 24. fxe5 {[%emt 0:01:23]} Nxe5 {[%emt 0:00:09]} 25. Qg3 {[%emt 0:00:02]} Nf3+ {[%emt 0:02:22]} 26. Qxf3 {[%emt 0:00:06]} Bxb2 {[%emt 0:00:03]} 27. Rxe8+ {[%emt 0:01:02]} Rxe8 {[%emt 0:00:02]} 28. Rf1 {[%emt 0:00:02]} Re7 {[%emt 0:02:44]} 29. Bd3 {[%emt 0:00:45]} Qe5 {[%emt 0:01:01]} 30. Nd2 {[%emt 0:00:18]} Qd4+ {[%emt 0:00:49]} 31. Kh1 {[%emt 0:00:07]} Qxh4+ {[%emt 0:00:03]} 32. Kg1 {[%emt 0:00:01]} Bd4+ {[%emt 0:00:02]} 0-1

[Event "16th Deltalift Open 2019"]
[Site "Halmstad"]
[Date "2019.05.30"]
[Round "1.9"]
[White "Seo, Jung Min"]
[Black "Magelius, Olof"]
[Result "1-0"]
[ECO "B90"]
[WhiteElo "2377"]
[BlackElo "1931"]
[Annotator "ChessBase"]
[PlyCount "31"]
[EventDate "2019.05.30"]
[EventType "swiss"]
[EventCountry "SWE"]
[SourceTitle "playchess.com"]
[Source "ChessBase"]
[SourceQuality "1"]
[TimeControl "1800+12"]

1. e4 {[%emt 0:00:00]} c5 {[%emt 0:00:00]} 2. Nf3 {[%emt 0:00:00]} d6 {[%emt 0:00:00]} 3. d4 {[%emt 0:00:00]} cxd4 {[%emt 0:00:00]} 4. Nxd4 {[%emt 0:00:00]} Nf6 {[%emt 0:00:00]} 5. Nc3 {[%emt 0:00:00]} a6 {[%emt 0:00:01]} 6. Be3 {[%emt 0:00:00]} e6 {[%emt 0:00:21]} 7. f3 {[%emt 0:00:36]} b5 {[%emt 0:00:26]} 8. Qd2 {[%emt 0:00:43]} Be7 {[%emt 0:00:43]} 9. g4 {[%emt 0:00:58]} h6 {[%emt 0:00:22]} 10. h4 {[%emt 0:00:37]} Bb7 {[%emt 0:00:50]} 11. O-O-O {[%emt 0:00:20]} b4 {[%emt 0:02:59]} 12. Na4 {[%emt 0:01:20]} Qa5 {[%emt 0:01:01]} 13. b3 {[%emt 0:00:02]} Nc6 {[%emt 0:00:49]} 14. Kb1 {[%emt 0:01:01]} d5 {[%emt 0:02:27]} 15. Nxc6 {[%emt 0:00:11]} Bxc6 {[%emt 0:00:03]} 16. Bb6 {[%emt 0:00:09]} 1-0

[Event "16th Deltalift Open 2019"]
[Site "Halmstad"]
[Date "2019.05.30"]
[Round "1.10"]
[White "Muntean, Victor"]
[Black "Rydstrom, Tom"]
[Result "0-1"]
[ECO "B22"]
[WhiteElo "1929"]
[BlackElo "2365"]
[Annotator "ChessBase"]
[PlyCount "104"]
[EventDate "2019.05.30"]
[EventType "swiss"]
[EventCountry "SWE"]
[SourceTitle "playchess.com"]
[Source "ChessBase"]
[SourceQuality "1"]
[TimeControl "1800+12"]

1. e4 {[%emt 0:00:00]} c5 {[%emt 0:00:00]} 2. c3 {[%emt 0:00:00]} Nf6 {[%emt 0:00:07]} 3. e5 {[%emt 0:00:00]} Nd5 {[%emt 0:00:01]} 4. d4 {[%emt 0:00:00]} cxd4 {[%emt 0:00:26]} 5. Nf3 {[%emt 0:00:04]} Nc6 {[%emt 0:00:36]} 6. cxd4 {[%emt 0:00:06]} d6 {[%emt 0:01:05]} 7. Bc4 {[%emt 0:00:33]} e6 {[%emt 0:02:32]} 8. Nc3 {[%emt 0:00:12]} Nxc3 {[%emt 0:03:56]} 9. bxc3 {[%emt 0:00:05]} Be7 {[%emt 0:00:01]} 10. Bf4 {[%emt 0:01:09]} d5 {[%emt 0:00:47]} 11. Bd3 {[%emt 0:00:06]} Bd7 {[%emt 0:00:01]} 12. O-O {[%emt 0:00:33]} Rc8 {[%emt 0:00:02]} 13. Qb1 {[%emt 0:01:47]} h6 {[%emt 0:01:08]} 14. Rc1 {[%emt 0:03:18]} Na5 {[%emt 0:00:13]} 15. a4 {[%emt 0:00:31]} Qc7 {[%emt 0:03:45]} 16. Nd2 {[%emt 0:03:11]} Nc4 {[%emt 0:05:35]} 17. Nxc4 {[%emt 0:01:57]} dxc4 {[%emt 0:00:01]} 18. Be4 {[%emt 0:00:07]} Bc6 {[%emt 0:00:10]} 19. Rd1 {[%emt 0:02:53]} O-O {[%emt 0:00:57]} 20. Qc2 {[%emt 0:02:50]} Rfd8 {[%emt 0:02:41]} 21. Bd2 {[%emt 0:01:33]} Bd5 {[%emt 0:00:59]} 22. Bxd5 {[%emt 0:00:50]} Rxd5 {[%emt 0:00:01]} 23. Qe4 {[%emt 0:00:38]} Qc6 {[%emt 0:00:53]} 24. f4 {[%emt 0:01:07]} Ra5 {[%emt 0:00:42]} 25. Qxc6 {[%emt 0:01:56]} Rxc6 {[%emt 0:00:23]} 26. Rdb1 {[%emt 0:00:04]} Rb6 {[%emt 0:01:05]} 27. Rxb6 {[%emt 0:00:07]} axb6 {[%emt 0:00:00]} 28. Rb1 {[%emt 0:00:42]} Ra6 {[%emt 0:01:43]} 29. g4 {[%emt 0:00:46]} Kf8 {[%emt 0:00:03]} 30. f5 {[%emt 0:01:27]} Ke8 {[%emt 0:00:08]} 31. f6 {[%emt 0:00:29]} gxf6 {[%emt 0:00:00]} 32. exf6 {[%emt 0:00:03]} Bf8 {[%emt 0:01:30]} 33. Rb5 {[%emt 0:02:06]} Kd7 {[%emt 0:00:31]} 34. h4 {[%emt 0:00:10]} Rxa4 {[%emt 0:02:03]} 35. Rxb6 {[%emt 0:00:12]} Kc7 {[%emt 0:00:01]} 36. Rb5 {[%emt 0:00:03]} Ra2 {[%emt 0:00:17]} 37. Bf4+ {[%emt 0:01:23]} Kc6 {[%emt 0:00:01]} 38. Rh5 {[%emt 0:00:01]} b5 {[%emt 0:00:02]} 39. Bxh6 {[%emt 0:01:33]} Bxh6 {[%emt 0:00:26]} 40. Rxh6 {[%emt 0:00:02]} b4 {[%emt 0:00:01]} 41. cxb4 c3 42. Rh5 {[%emt 0:00:05]} c2 {[%emt 0:00:02]} 43. Rc5+ {[%emt 0:00:02]} Kd6 {[%emt 0:00:00]} 44. g5 {[%emt 0:00:41]} Ra1+ {[%emt 0:00:04]} 45. Kg2 {[%emt 0:00:02]} c1=Q {[%emt 0:00:01]} 46. Rxc1 {[%emt 0:00:01]} Rxc1 {[%emt 0:00:02]} 47. h5 {[%emt 0:00:11]} Rc8 {[%emt 0:02:42]} 48. Kf3 {[%emt 0:02:21]} e5 {[%emt 0:00:01]} 49. Ke4 {[%emt 0:00:49]} Rc4 {[%emt 0:00:57]} 50. g6 {[%emt 0:00:30]} Ke6 {[%emt 0:00:01]} 51. g7 {[%emt 0:00:05]} Rxd4+ {[%emt 0:00:03]} 52. Kf3 {[%emt 0:00:11]} Rd8 {[%emt 0:00:05]} 0-1

[Event "16th Deltalift Open 2019"]
[Site "Halmstad"]
[Date "2019.05.30"]
[Round "1.11"]
[White "Malmstig, Erik"]
[Black "Sjodahl, Sten"]
[Result "1-0"]
[ECO "C54"]
[WhiteElo "2352"]
[BlackElo "1928"]
[Annotator "ChessBase"]
[PlyCount "55"]
[EventDate "2019.05.30"]
[EventType "swiss"]
[EventCountry "SWE"]
[SourceTitle "playchess.com"]
[Source "ChessBase"]
[SourceQuality "1"]
[TimeControl "1800+12"]

1. e4 {[%emt 0:00:00]} e5 {[%emt 0:00:00]} 2. Nf3 {[%emt 0:00:00]} Nc6 {[%emt 0:00:00]} 3. Bc4 {[%emt 0:00:08]} Bc5 {[%emt 0:00:22]} 4. c3 {[%emt 0:00:16]} Nf6 {[%emt 0:00:20]} 5. d3 {[%emt 0:00:08]} O-O {[%emt 0:00:13]} 6. Nbd2 {[%emt 0:00:21]} d6 {[%emt 0:00:21]} 7. h3 {[%emt 0:00:08]} a6 {[%emt 0:01:56]} 8. Bb3 {[%emt 0:00:28]} Bb6 {[%emt 0:00:27]} 9. Nc4 {[%emt 0:00:19]} Ba7 {[%emt 0:00:17]} 10. Ne3 {[%emt 0:00:40]} Ne7 {[%emt 0:00:34]} 11. Nh4 {[%emt 0:00:59]} Kh8 {[%emt 0:00:52]} 12. Qe2 {[%emt 0:01:49]} c6 {[%emt 0:01:27]} 13. g4 {[%emt 0:01:08]} Be6 {[%emt 0:00:40]} 14. Nef5 {[%emt 0:02:15]} Bxb3 {[%emt 0:00:36]} 15. axb3 {[%emt 0:00:12]} Nxf5 {[%emt 0:01:11]} 16. Nxf5 {[%emt 0:00:38]} d5 {[%emt 0:00:47]} 17. Bg5 {[%emt 0:01:01]} dxe4 {[%emt 0:00:28]} 18. dxe4 {[%emt 0:00:29]} g6 {[%emt 0:02:34]} 19. Rd1 {[%emt 0:00:17]} Qxd1+ {[%emt 0:01:02]} 20. Kxd1 {[%emt 0:00:31]} Nd7 {[%emt 0:00:47]} 21. Ng3 {[%emt 0:00:28]} f6 {[%emt 0:00:03]} 22. Bh6 {[%emt 0:00:42]} Rfd8 {[%emt 0:00:19]} 23. Kc2 {[%emt 0:00:04]} Nc5 {[%emt 0:00:40]} 24. Qf3 {[%emt 0:00:38]} Rd6 {[%emt 0:01:56]} 25. Rd1 {[%emt 0:00:07]} Re6 {[%emt 0:00:11]} 26. b4 {[%emt 0:00:27]} Na4 {[%emt 0:00:26]} 27. Qd3 {[%emt 0:00:33]} Rae8 {[%emt 0:01:26]} 28. Qd7 {[%emt 0:00:15]} 1-0